bitfinex-derivatives/quotes_SOLF0:USTF0_20250514
["timestamp","ask_amount","ask_price","bid_price","bid_amount"]
[1747246694031,60.0,175.55,175.49,5.6972]
[1747246694324,70.02009573,175.55,175.47,60.0]
[1747246694829,3.6727,175.54,175.47,60.0]
[1747246695030,3.6727,175.54,175.47,65.698]
[1747246695229,63.6527,175.54,175.47,65.698]
[1747246695528,5.697,175.51,175.47,65.698]
[1747246695723,65.657,175.51,175.48,5.6977]
[1747246695928,59.96,175.51,175.47,60.0]
[1747246697029,59.96,175.51,175.5,5.6971]
[1747246697330,59.96,175.51,175.47,60.0]
[1747246698125,5.6973,175.5,175.47,65.6981]
[1747246698436,59.96,175.51,175.47,60.0]
[1747246699231,65.657,175.51,175.48,5.6977]
[1747246699526,59.96,175.51,175.48,5.6977]
[1747246699731,5.6971,175.5,175.47,60.0]
[1747246699936,59.96,175.51,175.43,59.98]
[1747246700230,65.6569,175.51,175.43,59.98]
[1747246700933,65.6569,175.51,175.48,5.6976]
[1747246701328,59.96,175.51,175.43,59.98]
[1747246701528,59.96,175.51,175.5,5.6971]
[1747246703536,59.98,175.54,175.51,5.6965]
[1747246703734,59.94,175.53,175.47,59.98]
[1747246703936,59.98,175.54,175.47,59.98]
[1747246704136,59.94,175.53,175.52,5.6962]
[1747246705437,65.6362,175.53,175.47,59.98]
[1747246705638,59.94,175.53,175.47,59.98]
[1747246706038,5.6966,175.52,175.49,5.6974]
[1747246708743,59.94,175.53,175.47,59.98]
[1747246709035,61.7679,175.58,175.54,5.6956]
[1747246709248,59.92,175.57,175.47,59.98]
[1747246709537,59.92,175.57,175.53,5.696]
[1747246709942,59.92,175.57,175.47,59.98]
[1747246710344,5.6959,175.54,175.52,5.6964]
[1747246711340,61.7679,175.58,175.47,59.98]
[1747246711542,10.02009573,175.55,175.47,59.98]
[1747246712044,5.6963,175.53,175.49,5.6971]
[1747246712345,10.02009573,175.55,175.47,59.98]
[1747246712346,59.9,175.52,175.47,59.98]
[1747246712533,65.5967,175.52,175.47,59.98]
[1747246713146,59.9,175.52,175.5,5.6969]
[1747246713340,59.9,175.52,175.47,59.98]
[1747246713741,59.9,175.52,175.51,5.6968]
[1747246716445,59.9,175.55,175.54,5.6956]
[1747246716645,5.695,175.57,175.54,5.6956]
[1747246716841,59.88,175.56,175.54,5.6956]
[1747246717243,65.5752,175.56,175.54,5.6956]
[1747246717448,59.88,175.56,175.53,5.696]
[1747246717844,65.5753,175.56,175.53,5.696]
[1747246718045,65.5753,175.56,175.54,5.6958]
[1747246718241,5.6953,175.56,175.54,5.6958]
[1747246718447,59.88,175.57,175.48,15.65639573]
[1747246718746,59.88,175.57,175.48,75.53639573]
[1747246719654,59.88,175.57,175.56,5.6952]
[1747246719950,119.86,175.58,175.51,59.88]
[1747246720151,59.88,175.58,175.51,59.88]
[1747246720945,5.6952,175.56,175.53,5.6958]
[1747246721251,59.88,175.58,175.53,5.6958]
[1747246721445,59.88,175.58,175.54,5.6958]
[1747246721652,59.88,175.58,175.51,59.88]
[1747246721948,5.6954,175.56,175.53,5.696]
[1747246722149,59.88,175.58,175.51,59.88]
[1747246722650,5.6952,175.56,175.53,5.6959]
[1747246722949,5.6952,175.56,175.51,59.88]
[1747246723146,59.88,175.58,175.51,59.88]
[1747246723649,5.695,175.57,175.54,5.6955]
[1747246724453,5.695,175.57,175.55,5.6955]
[1747246724655,122.88807974,175.61,175.51,59.88]
[1747246724851,59.86,175.6,175.51,59.88]
[1747246725153,5.6951,175.57,175.54,5.6956]
[1747246726856,5.6951,175.57,175.51,59.88]
[1747246727254,5.6946,175.58,175.55,5.6953]
[1747246727458,5.6946,175.58,175.51,59.88]
[1747246727951,5.6946,175.58,175.55,5.6953]
[1747246728454,122.88807974,175.61,175.51,59.88]
[1747246728757,59.84,175.6,175.51,69.90009573]
[1747246728947,59.84,175.6,175.58,5.6943]
[1747246729560,59.84,175.6,175.55,59.88]
[1747246729856,182.72807974,175.61,175.55,59.88]
[1747246730155,5.6939,175.6,175.57,5.6948]
[1747246730357,65.5339,175.6,175.57,5.6948]
[1747246731160,5.6942,175.59,175.57,5.6948]
[1747246731762,65.534,175.6,175.57,5.6948]
[1747246732861,65.534,175.6,175.58,5.6944]
[1747246733055,65.534,175.6,175.55,59.88]
[1747246733460,65.534,175.6,175.57,5.6946]
[1747246733965,59.84,175.6,175.55,59.88]
[1747246734161,59.84,175.6,175.56,5.695]
[1747246734365,5.6944,175.59,175.55,59.88]
[1747246734862,5.6944,175.59,175.56,5.695]
[1747246735058,5.6944,175.59,175.55,59.88]
[1747246735361,5.6944,175.59,175.56,5.6948]
[1747246735961,5.6944,175.59,175.57,5.6948]
[1747246736964,65.5339,175.6,175.58,5.6944]
[1747246737261,59.84,175.6,175.55,59.88]
[1747246738064,65.534,175.6,175.57,5.6946]
[1747246738463,65.534,175.6,175.55,59.88]
[1747246738863,5.6942,175.59,175.57,5.6947]
[1747246739068,5.6942,175.59,175.55,59.88]
[1747246739568,59.84,175.6,175.55,59.88]
[1747246740063,59.88,175.62,175.6,5.6936]
[1747246740363,59.8,175.64,175.55,59.88]
[1747246740571,59.86,175.66,175.64,5.6923]
[1747246740769,119.66,175.66,175.64,5.6923]
[1747246741366,119.66,175.66,175.59,59.86]
[1747246741771,119.66,175.66,175.6,5.6937]
[1747246742172,5.6932,175.63,175.6,5.6937]
[1747246742568,119.66,175.66,175.61,5.6935]
[1747246742767,5.6928,175.64,175.61,5.6935]
[1747246743070,119.66,175.66,175.59,59.86]
[1747246743277,128.17147868,175.68,175.59,59.86]
[1747246743467,59.78,175.69,175.6,10.02009573]
[1747246743867,59.78,175.7,175.6,69.80009573]
[1747246744268,59.78,175.7,175.67,5.6915]
[1747246744773,59.78,175.7,175.68,5.6912]
[1747246745276,59.78,175.7,175.67,5.6915]
[1747246745573,65.4706,175.7,175.67,5.6915]
[1747246745774,59.76,175.72,175.64,59.76]
[1747246746775,5.6904,175.71,175.64,59.76]
[1747246746977,59.76,175.72,175.64,59.76]
[1747246747271,5.6908,175.7,175.64,59.76]
[1747246747475,59.76,175.72,175.64,59.76]
[1747246747775,5.6907,175.7,175.64,59.76]
[1747246747970,59.76,175.72,175.64,59.76]
[1747246748376,5.6906,175.71,175.64,59.76]
[1747246748575,5.6906,175.71,175.67,5.6913]
[1747246748772,5.6906,175.71,175.64,59.76]
[1747246748773,59.76,175.72,175.64,59.76]
[1747246749774,65.4502,175.72,175.64,59.76]
[1747246750479,5.6903,175.71,175.64,59.76]
[1747246750882,5.6907,175.7,175.64,59.76]
[1747246751076,69.76009573,175.71,175.64,59.76]
[1747246751379,75.45059573,175.71,175.68,5.691]
[1747246751580,59.74,175.71,175.64,59.76]
[1747246752080,3.7385,175.74,175.64,59.76]
[1747246752281,59.72,175.73,175.64,59.76]
[1747246752579,59.72,175.73,175.64,65.1824]
[1747246752782,3.7385,175.74,175.64,65.1824]
[1747246752974,59.72,175.73,175.71,5.6901]
[1747246753176,61.6318,175.75,175.71,5.6901]
[1747246753372,59.74,175.75,175.72,5.6897]
[1747246753881,59.72,175.75,175.68,59.74]
[1747246754177,61.6469,175.79,175.69,10.02009573]
[1747246754376,3.6396,175.8,175.69,10.02009573]
[1747246754578,59.72,175.79,175.69,10.02009573]
[1747246754779,59.72,175.78,175.69,10.02009573]
[1747246754977,65.4082,175.78,175.69,10.02009573]
[1747246755173,59.72,175.78,175.69,10.02009573]
[1747246755576,59.74,175.81,175.69,10.02009573]
[1747246755772,5.6878,175.79,175.76,5.6884]
[1747246755971,59.72,175.8,175.73,59.74]
[1747246756183,5.6881,175.78,175.73,59.74]
[1747246756381,59.72,175.8,175.73,59.74]
[1747246757085,59.72,175.8,175.71,59.72]
[1747246757781,5.689,175.76,175.72,5.6897]
[1747246758378,5.689,175.76,175.73,5.6895]
[1747246758886,59.72,175.8,175.72,5.6899]
[1747246759083,59.72,175.8,175.71,59.72]
[1747246759483,5.6888,175.76,175.73,5.6894]
[1747246759688,59.72,175.8,175.71,59.72]
[1747246760182,5.6888,175.76,175.73,5.6895]
[1747246761185,5.6892,175.75,175.72,5.6898]
[1747246761485,59.72,175.8,175.71,59.72]
[1747246761688,59.72,175.8,175.72,5.6897]
[1747246762183,59.72,175.8,175.71,59.72]
[1747246762681,59.72,175.8,175.73,5.6896]
[1747246762885,10.02009573,175.78,175.66,10.02009573]
[1747246763085,10.02009573,175.78,175.67,59.72]
[1747246763288,5.6898,175.73,175.7,5.6904]
[1747246764286,59.68,175.74,175.7,5.6904]
[1747246764484,59.68,175.74,175.69,5.6908]
[1747246764685,5.6907,175.7,175.67,59.72]
[1747246764885,59.68,175.74,175.64,5.4224]
[1747246764886,10.02009573,175.72,175.64,59.72]
[1747246765388,5.6907,175.7,175.66,5.6917]
[1747246765685,65.3507,175.7,175.66,5.6917]
[1747246766089,65.3507,175.7,175.64,59.72]
[1747246766591,59.66,175.7,175.64,59.72]
[1747246767589,59.66,175.7,175.68,5.6912]
[1747246767891,59.66,175.7,175.64,59.72]
[1747246768991,59.66,175.7,175.67,5.6913]
[1747246769389,59.66,175.7,175.64,59.72]
[1747246770689,65.3508,175.7,175.64,59.72]
[1747246770992,59.66,175.7,175.64,59.72]
[1747246772595,65.3507,175.7,175.67,5.6914]
[1747246773296,59.66,175.7,175.68,5.6912]
[1747246773794,5.691,175.69,175.66,5.6917]
[1747246774096,59.66,175.7,175.64,59.72]
[1747246775000,59.66,175.7,175.68,5.6911]
[1747246776899,59.66,175.7,175.69,5.6909]
[1747246777200,59.66,175.7,175.64,59.72]
[1747246777501,65.3507,175.7,175.64,59.72]
[1747246778199,59.66,175.7,175.64,59.72]
[1747246778699,59.66,175.7,175.68,5.6912]
[1747246778899,59.66,175.7,175.64,59.72]
[1747246779399,59.66,175.7,175.69,5.6909]
[1747246779797,1.8152,175.76,175.64,59.72]
[1747246780102,1.8152,175.76,175.74,5.6893]
[1747246780300,59.64,175.75,175.74,5.6893]
[1747246782002,1.8152,175.76,175.75,5.689]
[1747246782202,59.64,175.76,175.68,59.64]
[1747246782403,59.64,175.77,175.69,11.3819]
[1747246782604,119.26,175.77,175.76,5.6887]
[1747246782801,59.62,175.77,175.76,5.6887]
[1747246783301,59.64,175.81,175.72,59.64]
[1747246783505,59.62,175.8,175.72,59.64]
[1747246784608,59.62,175.8,175.79,5.6877]
[1747246785404,59.64,175.81,175.79,5.6877]
[1747246785605,59.64,175.81,175.8,5.6874]
[1747246785807,119.26,175.81,175.8,5.6874]
[1747246788507,59.62,175.81,175.8,5.6874]
[1747246789911,193.822523,175.84,175.76,59.62]
[1747246790709,193.822523,175.84,175.83,5.6864]
[1747246790911,63.3712,175.89,175.78,10.02009573]
[1747246791110,59.6,175.88,175.79,59.62]
[1747246791309,59.6,175.88,175.87,5.6851]
[1747246791809,59.62,175.89,175.88,5.6848]
[1747246792010,119.22,175.89,175.88,5.6848]
[1747246794011,119.2,175.89,175.88,5.6848]
[1747246795410,59.58,175.89,175.88,5.6848]
[1747246795610,159.34453772,176.12,175.88,647.42056938]
[1747246795806,26.78083772,176.12,175.88,627.4]
[1747246796010,166.74887324,176.15,176.14,5.6764]
[1747246796206,136.98467324,176.15,176.14,82.24668469]
[1747246796406,14.03239449,176.17,176.14,92.26056938]
[1747246796608,17.12,176.41,176.14,92.26056938]
[1747246796809,3.6674,176.5,176.25,10.01028469]
[1747246797006,3.6674,176.5,176.32,10.01028469]
[1747246797007,460.83897052,176.38,176.32,10.01028469]
[1747246797210,56.82,176.33,176.3,10.01028469]
[1747246797410,56.82,176.34,176.28,79.61028469]
[1747246797916,404.01897052,176.38,176.31,10.01028469]
[1747246798105,404.01897052,176.38,176.34,10.01028469]
[1747246798308,404.01897052,176.38,176.37,10.01028469]
[1747246798511,395.20967052,176.38,176.37,10.01028469]
[1747246798813,3.6674,176.5,176.37,82.25028469]
[1747246799018,56.82,176.45,176.37,82.25028469]
[1747246799515,3.6674,176.5,176.37,72.24]
[1747246799712,56.82,176.49,176.4,15.92583652]
[1747246799910,56.82,176.49,176.41,72.24]
[1747246800115,1.8968,176.54,176.42,72.48]
[1747246800318,56.82,176.54,176.44,15.92434966]
[1747246800515,79.54,176.54,176.44,15.92434966]
[1747246800708,56.82,176.52,176.44,15.92434966]
[1747246801016,5.6208,176.63,176.48,15.92434966]
[1747246801215,56.82,176.61,176.56,15.89923828]
[1747246801414,56.82,176.63,176.57,72.24]
[1747246801717,56.82,176.6,176.57,72.24]
[1747246801921,11.2973,177.01,176.57,88.13318582]
[1747246802213,19.64747631,176.77,176.56,74.38]
[1747246802412,15.89107631,176.73,176.53,80.06304389]
[1747246802619,56.82,176.61,176.53,80.06304389]
[1747246802810,56.82,176.61,176.58,36.38849574]
[1747246803013,56.82,176.6,176.58,36.38849574]
[1747246803620,56.82,176.59,176.58,36.38849574]
[1747246804114,56.82,176.59,176.58,9.509799]
[1747246804318,40.69820402,176.59,176.54,74.98]
[1747246804619,40.69820402,176.57,176.54,74.98]
[1747246804922,40.69820402,176.6,176.54,74.98]
[1747246805220,102.63523221,176.72,176.53,25.83973221]
[1747246805406,7.10747295,176.61,176.54,162.56]
[1747246805609,76.7955,176.72,176.55,25.83973221]
[1747246805816,7.10747295,176.6,176.54,162.56]
[1747246806007,25.8424167,176.7,176.52,6.21549445]
[1747246806213,7.10747295,176.58,176.52,6.21549445]
[1747246806520,25.8424167,176.66,176.53,86.78]
[1747246806818,25.8424167,176.66,176.52,6.21549445]
[1747246807021,86.8,176.67,176.52,92.99549445]
[1747246807218,86.8,176.67,176.52,86.78]
[1747246807514,86.8,176.67,176.52,112.6224167]
[1747246807718,86.8,176.67,176.52,86.78]
[1747246807915,5.6625,176.58,176.52,86.74]
[1747246808121,25.86649203,176.62,176.52,86.74]
[1747246808320,25.86649203,176.62,176.48,496.79549445]
[1747246808616,1.7934,176.61,176.49,90.97485]
[1747246809121,25.86649203,176.58,176.49,1.33485]
[1747246809425,25.89363688,176.55,176.49,1.33485]
[1747246809612,25.89363688,176.59,176.49,1.33485]
[1747246809818,182.7261,176.6,176.49,1.33485]
[1747246810120,25.88600376,176.54,176.49,1.33485]
[1747246810316,25.90094387,176.52,176.41,89.64]
[1747246810526,91.32,176.54,176.48,5.6654]
[1747246810821,91.32,176.54,176.41,89.64]
[1747246811022,96.9836,176.54,176.46,5.6661]
[1747246811223,91.32,176.54,176.41,89.64]
[1747246811517,5.6639,176.53,176.41,89.64]
[1747246811721,91.32,176.54,176.47,5.6658]
[1747246812026,91.32,176.54,176.41,89.64]
[1747246812218,5.6639,176.53,176.46,5.6661]
[1747246812521,91.08,176.57,176.41,89.64]
[1747246813920,91.08,176.57,176.46,5.6661]
[1747246814122,91.08,176.57,176.41,89.64]
[1747246814321,5.664,176.53,176.47,5.6657]
[1747246814619,25.88594765,176.58,176.41,89.64]
[1747246814825,90.6,176.59,176.42,25.8754878]
[1747246815022,1.7934,176.61,176.46,25.8754878]
[1747246815223,89.6,176.66,176.5,25.8754878]
[1747246815424,89.6,176.66,176.51,90.8]
[1747246816219,1.7658,176.68,176.54,25.8754878]
[1747246816427,1.7658,176.68,176.55,89.6]
[1747246816921,1.7811,176.71,176.59,25.8754878]
[1747246817125,1.7811,176.71,176.6,91.54]
[1747246817322,1.7811,176.71,176.61,89.58]
[1747246817520,1.8094,176.76,176.61,605.0954878]
[1747246817822,672.6,176.87,176.69,25.8754878]
[1747246818025,1.8094,176.86,176.7,186.82]
[1747246819126,1.8094,176.86,176.7,212.6954878]
[1747246819326,1.8094,176.86,176.75,5.6566]
[1747246819530,27.6848878,176.86,176.72,103.72]
[1747246819830,5.6547,176.82,176.74,5.6568]
[1747246820031,27.6848878,176.86,176.72,103.72]
[1747246820231,108.64,176.85,176.69,106.84]
[1747246821237,25.8754878,176.84,176.69,106.84]
[1747246821527,25.8754878,176.84,176.68,124.9288402]
[1747246821732,25.8754878,176.8,176.69,5.6586]
[1747246821930,25.8754878,176.8,176.68,124.9288402]
[1747246822329,25.8754878,176.76,176.68,6.21549445]
[1747246822531,1.9262,176.75,176.68,6.21549445]
[1747246822732,1.9262,176.75,176.65,6.21549445]
[1747246822929,25.8754878,176.72,176.65,6.21549445]
[1747246824030,25.8754878,176.72,176.64,18.64648335]
[1747246824633,25.8754878,176.72,176.62,26.87869674]
[1747246824932,25.8754878,176.67,176.6,18.60092765]
[1747246825525,5.6609,176.63,176.6,18.60092765]
[1747246825730,25.8754878,176.67,176.6,18.60092765]
[1747246826430,25.8754878,176.67,176.61,7.10386414]
[1747246826940,25.857691,176.67,176.61,7.10386414]
[1747246827134,25.857691,176.67,176.61,4.17836414]
[1747246827336,5.661,176.62,176.61,4.17836414]
[1747246827731,110.42,176.68,176.61,4.17836414]
[1747246828936,110.42,176.68,176.59,49.94690403]
[1747246829137,25.85913803,176.66,176.59,49.94690403]
[1747246829335,25.86095944,176.65,176.59,49.94690403]
[1747246829536,110.42,176.68,176.59,49.94690403]
[1747246829741,5.6609,176.63,176.59,49.94690403]
[1747246830434,5.661,176.62,176.59,49.94690403]
[1747246830639,5.661,176.62,176.6,30.60453115]
[1747246831541,5.6613,176.61,176.6,30.60453115]
[1747246832140,5.6619,176.59,176.58,49.94690403]
[1747246832335,5.6619,176.59,176.58,47.02150403]
[1747246832535,25.86095944,176.6,176.53,129.03029374]
[1747246832742,134.62095944,176.6,176.53,129.03029374]
[1747246832939,134.62095944,176.6,176.57,80.06304389]
[1747246833142,124.0278164,176.6,176.57,53.92854389]
[1747246833341,124.0278164,176.6,176.57,49.77284389]
[1747246833342,5.6623,176.58,176.57,49.77284389]
[1747246833842,134.62095944,176.6,176.53,48.96724985]
[1747246834044,134.62095944,176.6,176.49,5.6649]
[1747246834235,25.86095944,176.56,176.45,1.8918]
[1747246834438,5.6648,176.51,176.45,7.5579]
[1747246834646,25.86095944,176.56,176.45,1.8918]
[1747246835248,25.86095944,176.52,176.41,1.7566]
[1747246835748,107.94,176.53,176.41,1.7566]
[1747246836045,5.6651,176.5,176.44,5.6665]
[1747246836445,107.94,176.53,176.44,5.6665]
[1747246836647,5.6651,176.5,176.45,5.6662]
[1747246836841,107.94,176.53,176.41,1.7566]
[1747246838350,25.89914769,176.52,176.43,5.667]
[1747246838548,25.89914769,176.52,176.41,1.7566]
[1747246838743,5.6653,176.49,176.45,5.6661]
[1747246839049,107.94,176.53,176.41,1.7566]
[1747246839347,25.90211818,176.52,176.42,6.00607061]
[1747246839648,25.90462888,176.51,176.42,6.00607061]
[1747246839849,5.6667,176.45,176.4,5.668]
[1747246840148,25.90462888,176.51,176.39,1.7657]
[1747246840351,25.90462888,176.51,176.42,5.6673]
[1747246840545,25.90462888,176.51,176.43,5.98882035]
[1747246840951,5.6659,176.47,176.43,11.65562035]
[1747246841250,5.6659,176.47,176.44,5.98882035]
[1747246841448,5.6652,176.49,176.44,5.98882035]
[1747246841751,107.26,176.52,176.45,5.98882035]
[1747246841950,5.6651,176.5,176.45,11.65502035]
[1747246842249,5.6651,176.5,176.45,5.98882035]
[1747246842451,107.26,176.52,176.46,5.98882035]
[1747246842846,231.28,176.58,176.47,5.98882035]
[1747246843047,213.58,176.58,176.47,5.98882035]
[1747246843250,213.58,176.58,176.48,5.98882035]
[1747246843449,5.6647,176.51,176.48,5.98882035]
[1747246844053,106.1,176.55,176.49,5.98882035]
[1747246844452,106.1,176.55,176.5,5.98882035]
[1747246844853,25.88471298,176.57,176.5,5.98882035]
[1747246845056,5.6644,176.52,176.5,5.98882035]
[1747246845256,5.6644,176.52,176.42,107.28]
[1747246845257,5.6644,176.52,176.51,5.98882035]
[1747246846862,105.9,176.56,176.39,1.7657]
[1747246847154,25.88471298,176.49,176.39,1.7657]
[1747246847455,131.78471298,176.56,176.4,6.00492323]
[1747246847658,25.88471298,176.52,176.4,6.00492323]
[1747246848045,25.88471298,176.52,176.41,6.00492323]
[1747246848356,25.88471298,176.52,176.43,5.667]
[1747246848655,25.88471298,176.52,176.44,6.00492323]
[1747246848856,5.6663,176.46,176.45,6.00492323]
[1747246849359,131.78471298,176.56,176.45,6.00492323]
[1747246849557,131.78471298,176.56,176.39,1.7657]
[1747246850656,25.89032187,176.55,176.39,1.7657]
[1747246850854,104.5,176.54,176.39,27.64856557]
[1747246851053,5.6645,176.51,176.39,27.64856557]
[1747246851357,25.88286557,176.57,176.39,27.64856557]
[1747246851554,5.6639,176.53,176.39,1.7657]
[1747246851753,25.88286557,176.57,176.42,25.88286557]
[1747246852152,25.88286557,176.57,176.39,1.7657]
[1747246852353,25.88286557,176.57,176.4,208.42]
[1747246852555,25.88286557,176.57,176.46,5.666]
[1747246852757,25.88286557,176.57,176.39,1.7657]
[1747246852952,25.88286557,176.53,176.42,5.6673]
[1747246853152,25.88286557,176.53,176.39,1.7657]
[1747246853356,25.88286557,176.56,176.39,1.7657]
[1747246853647,25.88286557,176.56,176.44,5.6667]
[1747246853851,25.88286557,176.56,176.39,1.7657]
[1747246854357,5.6642,176.53,176.4,25.88286557]
[1747246854555,25.88286557,176.56,176.4,25.88286557]
[1747246855060,207.4,176.62,176.44,25.88286557]
[1747246855256,233.28286557,176.62,176.45,209.2242]
[1747246855456,5.6625,176.58,176.45,209.2242]
[1747246855648,5.6625,176.58,176.52,5.664]
[1747246855957,233.28286557,176.62,176.45,209.2242]
[1747246857059,206.72,176.62,176.47,25.88286557]
[1747246857247,206.64,176.62,176.48,1.7913]
[1747246857451,5.6602,176.65,176.51,25.88286557]
[1747246857659,104.22,176.68,176.52,208.9075]
[1747246857848,207.06,176.68,176.6,5.6613]
[1747246858058,207.06,176.68,176.52,208.9075]
[1747246859154,5.6608,176.63,176.52,208.9075]
[1747246859360,102.48,176.67,176.52,208.9075]
[1747246859656,102.48,176.67,176.52,106.1275]
[1747246859855,25.88286557,176.66,176.52,106.1275]
[1747246860053,25.88286557,176.62,176.52,1.9275]
[1747246860555,25.88286557,176.62,176.54,5.6633]
[1747246860854,25.88286557,176.62,176.52,1.9275]
[1747246861255,25.88286557,176.62,176.52,7.5917]
[1747246861256,5.6628,176.57,176.52,7.5917]
[1747246861457,5.6628,176.57,176.52,1.9275]
[1747246861659,5.6622,176.59,176.52,1.9275]
[1747246861864,102.24,176.61,176.52,1.9275]
[1747246862663,25.88286557,176.6,176.48,1.7913]
[1747246862971,5.6641,176.53,176.48,1.7913]
[1747246863365,25.88286557,176.6,176.48,1.7913]
[1747246863567,25.88286557,176.56,176.45,1.9069]
[1747246863762,101.42,176.55,176.45,1.9069]
[1747246864061,104.18,176.54,176.45,1.9069]
[1747246864263,104.18,176.54,176.41,16.49876667]
[1747246864468,25.88286557,176.52,176.4,1.8385]
[1747246865463,5.6669,176.44,176.4,1.8385]
[1747246865667,25.88286557,176.52,176.4,1.8385]
[1747246866468,5.667,176.44,176.4,1.8385]
[1747246867154,202.3,176.48,176.33,1.9069]
[1747246867361,202.3,176.48,176.33,106.76]
[1747246867561,202.3,176.48,176.36,5.6692]
[1747246867860,25.88286557,176.46,176.33,5.64]
[1747246868166,5.6676,176.42,176.37,5.6689]
[1747246868463,25.88286557,176.46,176.37,5.6689]
[1747246868865,25.88286557,176.46,176.36,5.6692]
[1747246869271,25.88286557,176.47,176.33,5.64]
[1747246869763,25.88286557,176.47,176.36,5.6692]
[1747246870066,25.88286557,176.47,176.33,5.64]
[1747246870267,5.6687,176.38,176.34,5.6699]
[1747246870968,5.6687,176.38,176.33,9.4011]
[1747246871163,5.6687,176.38,176.33,3.7309]
[1747246871365,5.6684,176.39,176.33,3.7309]
[1747246871563,5.6684,176.39,176.34,5.6697]
[1747246871963,5.6687,176.38,176.34,5.6697]
[1747246872167,5.6687,176.38,176.33,3.7309]
[1747246872368,99.86,176.42,176.33,3.7309]
[1747246872567,5.6689,176.38,176.33,9.401]
[1747246872764,201.02,176.42,176.33,3.7309]
[1747246872964,201.02,176.42,176.3,489.54]
[1747246873172,5.6686,176.39,176.3,489.54]
[1747246873367,201.02,176.42,176.3,489.54]
[1747246874069,25.88286557,176.41,176.3,489.54]
[1747246874262,25.88286557,176.41,176.33,5.6702]
[1747246874464,25.88286557,176.41,176.3,489.54]
[1747246874767,5.6693,176.37,176.32,5.6705]
[1747246875066,25.88286557,176.41,176.3,489.54]
[1747246875262,25.88286557,176.41,176.29,1.8552]
[1747246876375,5.6693,176.37,176.32,5.6706]
[1747246876673,25.88286557,176.41,176.29,1.8552]
[1747246876970,5.669,176.38,176.33,5.6702]
[1747246877271,199.08,176.42,176.29,1.8552]
[1747246877569,5.6679,176.41,176.36,5.6691]
[1747246877768,5.6679,176.41,176.29,1.8552]
[1747246878173,5.6679,176.41,176.37,5.6688]
[1747246878466,4.0,176.46,176.32,25.88286557]
[1747246878674,97.44,176.46,176.38,5.6685]
[1747246878866,97.44,176.46,176.33,98.1]
[1747246879067,97.44,176.46,176.32,25.88286557]
[1747246879271,5.6677,176.41,176.37,5.6687]
[1747246879470,5.6677,176.41,176.32,123.98286557]
[1747246879873,5.6675,176.42,176.37,5.6688]
[1747246880168,97.44,176.46,176.37,5.6688]
[1747246880370,97.44,176.46,176.32,123.98286557]
[1747246880571,98.1,176.47,176.32,123.98286557]
[1747246880767,98.1,176.47,176.35,25.88286557]
[1747246880972,103.7658,176.47,176.42,5.6672]
[1747246881375,98.1,176.47,176.42,5.6672]
[1747246881577,98.1,176.47,176.32,515.80286557]
[1747246881780,98.1,176.47,176.33,194.66]
[1747246882070,5.667,176.44,176.4,5.6679]
[1747246882774,5.6671,176.43,176.39,5.6683]
[1747246882971,98.1,176.47,176.32,515.80286557]
[1747246883272,5.6673,176.43,176.35,98.1]
[1747246883465,98.1,176.47,176.35,98.1]